fUST/lending_fUST_20250210
["ID","MTS","AMOUNT","RATE_DAILY","PERIOD"]
[352501324,1739139052585,-500.0,0.00013699,2]
[352501326,1739139052594,-3887.13347023,0.00013699,2]
[352501328,1739139052603,-500.0,0.00013699,2]
[352501330,1739139052612,-3887.13347023,0.00013699,2]
[352501332,1739139052622,-500.0,0.00013699,2]
[352501334,1739139052631,-3887.13347023,0.00013699,2]
[352501336,1739139052640,-3887.13347023,0.00013699,2]
[352501338,1739139052649,-500.0,0.00013699,2]
[352501340,1739139052658,-3887.13347023,0.00013699,2]
[352501342,1739139052667,-3887.13347023,0.00013699,2]
[352501344,1739139052676,-500.0,0.00013699,2]
[352501346,1739139052685,-3887.13347023,0.00013699,2]
[352501348,1739139052694,-500.0,0.00013699,2]
[352501350,1739139052703,-3887.13347023,0.00013699,2]
[352501352,1739139052712,-3887.13347023,0.00013699,2]
[352501354,1739139052721,-417.74056036,0.00013699,2]
[352501355,1739139052730,-3887.13347023,0.00013699,2]
[352501357,1739139052740,-3887.13347023,0.00013699,2]
[352501360,1739139052750,-3887.13347023,0.00013699,2]
[352501361,1739139052759,-3887.13347023,0.00013699,2]
[352501363,1739139052771,-3887.13347023,0.00013699,2]
[352501365,1739139052780,-3887.13347023,0.00013699,2]
[352501367,1739139052789,-3887.13347023,0.00013699,2]
[352501369,1739139052799,-3887.13347023,0.00013699,2]
[352501371,1739139052808,-3887.13347023,0.00013699,2]
[352501373,1739139052817,-3887.13347023,0.00013699,2]
[352501375,1739139052827,-3887.13347023,0.00013699,2]
[352501377,1739139052836,-3887.13347023,0.00013699,2]
[352501379,1739139052845,-3887.13347023,0.00013699,2]
[352501381,1739139052854,-3887.13347023,0.00013699,2]
[352501383,1739139052864,-3887.13347023,0.00013699,2]
[352501385,1739139052873,-3887.13347023,0.00013699,2]
[352501387,1739139052883,-3887.13347023,0.00013699,2]
[352501389,1739139052892,-3887.13347023,0.00013699,2]
[352501391,1739139052902,-3887.13347023,0.00013699,2]
[352501393,1739139052911,-3887.13347023,0.00013699,2]
[352501395,1739139052921,-3887.13347023,0.00013699,2]
[352501397,1739139052931,-3887.13347023,0.00013699,2]
[352501399,1739139052940,-3887.13347023,0.00013699,2]
[352501401,1739139052949,-3887.13347023,0.00013699,2]
[352501403,1739139052958,-3887.13347023,0.00013699,2]
[352501405,1739139052968,-3887.13347023,0.00013699,2]
[352501407,1739139052977,-3887.13347023,0.00013699,2]
[352501409,1739139052986,-3887.13347023,0.00013699,2]
[352501411,1739139052995,-3895.77154463,0.00013699,2]
[352501413,1739139053004,-3895.77154463,0.00013699,2]
[352501415,1739139053016,-3895.77154463,0.00013699,2]
[352501417,1739139053025,-3895.77154463,0.00013699,2]
[352501419,1739139053034,-3895.77154463,0.00013699,2]
[352501421,1739139053043,-3895.77154463,0.00013699,2]
[352501423,1739139053055,-3895.77154463,0.00013699,2]
[352501425,1739139053064,-3895.77154463,0.00013699,2]
[352501427,1739139053074,-3895.77154463,0.00013699,2]
[352501429,1739139053083,-2000.0,0.000138,2]
[352501431,1739139053092,-2000.0,0.000138,2]
[352501434,1739139053102,-160.0,0.00013801,5]
[352501435,1739139053111,-1090.35,0.00013835,2]
[352501437,1739139053121,-1382.21,0.00013835,2]
[352501439,1739139053130,-500.0,0.00013835,2]
[352501441,1739139053139,-1776.74,0.00013835,2]
[352501443,1739139053148,-505.7,0.00013835,2]
[352501445,1739139053158,-2535.49,0.00013835,2]
[352501447,1739139053167,-520.28,0.00013835,2]
[352501449,1739139053176,-1288.92,0.00013835,2]
[352501451,1739139053186,-1011.88,0.00013835,2]
[352501453,1739139053195,-592.48,0.00013835,2]
[352501455,1739139053203,-11049.1,0.00013835,2]
[352501457,1739139053213,-3548.82,0.00013835,2]
[352501459,1739139053223,-8232.14,0.00013835,2]
[352501461,1739139053232,-3391.52,0.00013835,2]
[352501463,1739139053241,-1749.51,0.00013835,2]
[352501465,1739139053250,-1830.63,0.00013835,2]
[352501467,1739139053260,-500.0,0.00013835,2]
[352501469,1739139053271,-3346.8,0.00013835,2]
[352501471,1739139053280,-920.44,0.00013835,2]
[352501473,1739139053290,-946.85,0.00013835,2]
[352501475,1739139053299,-1102.24,0.00013835,2]
[352501477,1739139053308,-13266.52937459,0.00013854,2]
[352501479,1739139053318,-204.8284021,0.00013859,2]
[352501481,1739139053327,-154.0,0.00013895,2]
[352501483,1739139053336,-154.0,0.00013895,2]
[352501485,1739139053346,-154.0,0.00013895,2]
[352501487,1739139053355,-154.0,0.00013895,2]
[352501488,1739139053364,-154.0,0.00013895,2]
[352501489,1739139053373,-154.0,0.00013895,2]
[352501490,1739139053383,-154.0,0.00013895,2]
[352501491,1739139053392,-154.0,0.00013895,2]
[352501492,1739139053402,-154.0,0.00013895,2]
[352501493,1739139053411,-154.0,0.00013895,2]
[352501494,1739139053421,-154.0,0.00013895,2]
[352501495,1739139053430,-154.0,0.00013895,2]
[352501496,1739139053439,-154.0,0.00013895,2]
[352501497,1739139053448,-154.0,0.00013895,2]
[352501498,1739139053458,-154.0,0.00013895,2]
[352501509,1739139053573,-241.73,0.00013895,2]
[352501511,1739139053583,-158.61,0.00013895,2]
[352501513,1739139053592,-151.0,0.00013895,2]
[352501515,1739139053601,-151.0,0.00013895,2]
[352501517,1739139053611,-151.0,0.00013895,2]
[352501519,1739139053620,-151.0,0.00013895,2]
[352501521,1739139053630,-151.0,0.00013895,2]
[352501523,1739139053639,-151.0,0.00013895,2]
[352501525,1739139053649,-151.0,0.00013895,2]
[352501527,1739139053659,-151.0,0.00013895,2]
[352501529,1739139053668,-151.0,0.00013895,2]
[352501531,1739139053677,-151.0,0.00013895,2]
[352501533,1739139053686,-151.0,0.00013895,2]
[352501535,1739139053696,-154.49,0.00013895,2]
[352501537,1739139053705,-154.0,0.00013901,2]
[352501539,1739139053715,-154.0,0.00013901,2]
[352501541,1739139053724,-154.0,0.00013901,2]
[352501543,1739139053732,-154.0,0.00013901,2]
[352501545,1739139053742,-154.0,0.00013901,2]
[352501547,1739139053751,-154.0,0.00013901,2]
[352501549,1739139053760,-154.0,0.00013901,2]
[352501551,1739139053771,-154.0,0.00013901,2]
[352501553,1739139053780,-154.0,0.00013901,2]
[352501555,1739139053789,-154.0,0.00013901,2]
[352501557,1739139053799,-154.0,0.00013901,2]
[352501559,1739139053808,-154.0,0.00013901,2]
[352501561,1739139053818,-154.0,0.00013901,2]
[352501563,1739139053827,-154.0,0.00013901,2]
[352501565,1739139053837,-154.0,0.00013901,2]
[352501567,1739139053846,-151.0,0.00013901,2]
[352501569,1739139053856,-154.0,0.00013901,2]
[352501571,1739139053865,-151.0,0.00013901,2]
[352501573,1739139053875,-154.0,0.00013901,2]
[352501575,1739139053884,-154.0,0.00013901,2]
[352501577,1739139053894,-151.0,0.00013901,2]
[352501579,1739139053903,-151.0,0.00013901,2]
[352501581,1739139053913,-221.92,0.00013901,2]
[352501583,1739139053923,-151.0,0.00013901,2]
[352501585,1739139053932,-151.0,0.00013901,2]
[352501587,1739139053941,-151.0,0.00013901,2]
[352501589,1739139053951,-151.0,0.00013901,2]
[352501591,1739139053960,-151.0,0.00013901,2]
[352501593,1739139053970,-151.0,0.00013901,2]
[352501595,1739139053979,-151.0,0.00013901,2]
[352501597,1739139053989,-151.0,0.00013901,2]
[352501599,1739139053999,-151.0,0.00013901,2]
[352501601,1739139054008,-151.0,0.00013901,2]
[352501603,1739139054019,-151.0,0.00013901,2]
[352501605,1739139054028,-151.0,0.00013901,2]
[352501607,1739139054038,-151.0,0.00013901,2]
[352501609,1739139054047,-151.0,0.00013901,2]
[352501611,1739139054057,-151.0,0.00013901,2]
[352501613,1739139054067,-151.0,0.00013901,2]
[352501615,1739139054076,-151.0,0.00013901,2]
[352501617,1739139054089,-155.76,0.00013901,2]
[352501619,1739139054099,-1090.35,0.00013972,2]
[352501621,1739139054108,-1382.21,0.00013972,2]
[352501623,1739139054118,-500.0,0.00013972,2]
[352501625,1739139054127,-1776.74,0.00013972,2]
[352501627,1739139054137,-505.7,0.00013972,2]
[352501629,1739139054147,-2535.49,0.00013972,2]
[352501631,1739139054157,-520.28,0.00013972,2]
[352501633,1739139054166,-1288.92,0.00013972,2]
[352501635,1739139054176,-1011.88,0.00013972,2]
[352501637,1739139054186,-592.48,0.00013972,2]
[352501639,1739139054196,-11049.1,0.00013972,2]
[352501641,1739139054205,-3548.82,0.00013972,2]
[352501644,1739139054215,-8232.14,0.00013972,2]
[352501646,1739139054225,-3391.52,0.00013972,2]
[352501648,1739139054234,-1749.51,0.00013972,2]
[352501650,1739139054243,-1830.63,0.00013972,2]
[352501652,1739139054252,-360.2201328,0.00013972,2]
[352501654,1739139054262,-3346.8,0.00013972,2]
[352501656,1739139054272,-920.44,0.00013972,2]
[352501657,1739139054281,-946.85,0.00013972,2]
[352501658,1739139054291,-1102.24,0.00013972,2]
[352501659,1739139054300,-160.0,0.00013999,2]
[352501660,1739139054309,-2400.0,0.00014,2]
[352501661,1739139054319,-3505.94,0.00014,2]
[352501662,1739139054328,-582.0,0.00014,4]
[352501663,1739139054337,-163.159488,0.00014,4]
[352501664,1739139054347,-772945.74020972,0.00014,2]
[352501665,1739139054356,-567.0,0.00014019,2]
[352501666,1739139054365,-500.0,0.00014019,2]
[352501667,1739139054374,-150.24,0.00014019,2]
[352501668,1739139054383,-500.0,0.00014019,2]
[352501669,1739139054393,-150.24,0.00014019,2]
[352501670,1739139054402,-1019.38447422,0.00014023,2]
[352501671,1739139054411,-193.0,0.00014044,2]
[352501672,1739139054420,-1483.12351443,0.00014067,2]
[352501673,1739139054429,-150.83221877,0.00014068,20]
[352501674,1739139054439,-382.18514507,0.00014073,2]
[352501675,1739139054448,-500.0,0.00014073,2]
[352501676,1739139054458,-396.0,0.00014079,2]
[352501677,1739139054468,-731.6,0.00014089,2]
[352501678,1739139054477,-160.0,0.00014108,2]
[352501679,1739139054487,-1090.42718841,0.00014109,2]
[352501681,1739139054496,-1382.31387728,0.00014109,2]
[352501683,1739139054505,-500.0,0.00014109,2]
[352501684,1739139054515,-1776.77419009,0.00014109,2]
[352501686,1739139054524,-505.71975041,0.00014109,2]
[352501687,1739139054533,-2535.49619201,0.00014109,2]
[352501688,1739139054544,-520.4866173,0.00014109,2]
[352501689,1739139054553,-1289.05331791,0.00014109,2]
[352501690,1739139054563,-1012.08145813,0.00014109,2]
[352501691,1739139054572,-592.68710013,0.00014109,2]
[352501692,1739139054582,-11049.29853192,0.00014109,2]
[352501693,1739139054592,-3548.87767816,0.00014109,2]
[352501694,1739139054601,-8232.20336436,0.00014109,2]
[352501695,1739139054610,-3391.6992541,0.00014109,2]
[352501696,1739139054620,-1749.66859601,0.00014109,2]
[352501697,1739139054629,-1830.695,0.00014109,2]
[352501698,1739139054638,-3346.91575917,0.00014109,2]
[352501699,1739139054648,-920.55588584,0.00014109,2]
[352501700,1739139054657,-946.90295102,0.00014109,2]
[352501701,1739139054667,-1102.43517285,0.00014109,2]
[352501702,1739139054676,-270.84037454,0.00014114,2]
[352501703,1739139054686,-1483.12351443,0.00014167,2]
[352501704,1739139054695,-800.0,0.00014178,2]
[352501705,1739139054705,-500.0,0.00014246,2]
[352501706,1739139054715,-1006.9651912,0.00014247,2]
[352501707,1739139054724,-1000.0,0.00014247,2]
[352501709,1739139054734,-523.11382173,0.00014247,2]
[352501711,1739139054743,-1000.0,0.00014247,2]
[352501713,1739139054753,-1000.0,0.00014247,2]
[352501714,1739139054763,-331.38879641,0.00014247,2]
[352501716,1739139054773,-571.67110399,0.00014247,2]
[352501718,1739139054782,-1000.0,0.00014247,2]
[352501720,1739139054792,-1000.0,0.00014247,2]
[352501722,1739139054801,-1000.0,0.00014247,2]
[352501724,1739139054810,-1000.0,0.00014247,2]
[352501726,1739139054820,-576.43933015,0.00014247,2]
[352501728,1739139054829,-202.27276175,0.00014247,2]
[352501730,1739139054839,-1483.12351443,0.00014267,2]
[352501732,1739139054849,-567.0,0.00014293,2]
[352501734,1739139054859,-500.0,0.00014293,2]
[352501736,1739139054869,-500.0,0.00014293,2]
[352501738,1739139054879,-205.26907086,0.00014293,2]
[352501740,1739139054889,-1483.12351443,0.00014367,2]
[352501742,1739139054899,-2000.0,0.00014368,2]
[352501745,1739139054918,-1570.18621855,0.00014371,2]
[352501747,1739139054929,-500.0,0.00014383,2]
[352501749,1739139054939,-998.5283615,0.00014385,2]
[352501751,1739139054949,-246.0,0.00014462,2]
[352501753,1739139054960,-1483.12351443,0.00014467,2]
[352501755,1739139054970,-271.0,0.0001448,2]
[352501757,1739139054980,-156.5163479,0.000145,20]
[352501759,1739139054990,-500.0,0.0001452,2]
[352501761,1739139055000,-823.0,0.00014542,2]
[352501763,1739139055010,-567.0,0.00014567,2]
[352501765,1739139055022,-500.0,0.00014567,2]
[352501767,1739139055032,-500.0,0.00014567,2]
[352501769,1739139055042,-1483.12351443,0.00014567,2]
[352501771,1739139055051,-1000.0,0.00014621,2]
[352501773,1739139055061,-500.0,0.00014657,2]
[352501775,1739139055071,-1483.12351443,0.00014667,2]
[352501777,1739139055080,-1483.12351443,0.00014767,2]
[352501779,1739139055090,-500.0,0.00014794,2]
[352501781,1739139055099,-840.799999,0.000148,2]
[352501783,1739139055108,-840.8,0.000148,2]
[352501785,1739139055118,-160.0,0.00014801,2]
[352501787,1739139055127,-7568.17859571,0.00014802,2]
[352501789,1739139055136,-5000.0,0.00014802,2]
[352501791,1739139055146,-5000.0,0.00014802,2]
[352501793,1739139055155,-5000.0,0.00014802,2]
[352501795,1739139055165,-5000.0,0.00014802,2]
[352501797,1739139055176,-5000.0,0.00014819,2]
[352501799,1739139055186,-5000.0,0.00014819,2]
[352501801,1739139055196,-5003.66374394,0.00014828,2]
[352501803,1739139055205,-163.159488,0.0001483,3]
[352501805,1739139055215,-47099.44253091,0.0001484,2]
[352501807,1739139055225,-567.0,0.00014841,2]
[352501809,1739139055235,-500.0,0.00014841,2]
[352501811,1739139055245,-851.53111404,0.00014841,2]
[352501813,1739139055254,-5000.0,0.00014843,2]
[352501814,1739139055265,-5000.0,0.00014843,2]
[352501816,1739139055276,-1483.12351443,0.00014867,2]
[352501818,1739139055286,-249.0,0.00014892,2]
[352501820,1739139055295,-568.08277669,0.000149,2]
[352501822,1739139055305,-432.1428194,0.000149,2]
[352501824,1739139055315,-432.14281938,0.000149,2]
[352501826,1739139055325,-432.14281938,0.000149,2]
[352501828,1739139055335,-500.0,0.00014931,2]
[352501830,1739139055345,-1483.12351443,0.00014967,2]
[352501832,1739139055355,-160.0,0.00014999,2]
[352501834,1739139055364,-29263.47715468,0.00015,15]
[352501836,1739139055373,-30000.0,0.00015,2]
[352501838,1739139055383,-30000.0,0.00015,2]
[352501840,1739139055392,-30000.0,0.00015,2]
[352501842,1739139055403,-12078.35378543,0.00015,2]
[352501850,1739139055501,-876.06120558,0.00015,2]
[352501852,1739139055515,-3127.57903725,0.00015,2]
[352501861,1739139055597,-8353.8484508,0.00015,2]
[352501864,1739139055608,-719.089473,0.00015,2]
[352501866,1739139055620,-2553.7,0.00015,2]
[352501928,1739139056346,-1752.230928,0.00013598,2]
[352501930,1739139056358,-949.62,0.00013598,2]
[352501962,1739139056661,-1355.39069142,0.00013598,2]
[352501964,1739139056671,-542.83404772,0.00013974,2]
[352501965,1739139056683,-3514.40757166,0.00013974,2]
[352501966,1739139056693,-292.45261529,0.00015,2]
[352503700,1739139616479,5000.0,0.00014,30]
[352503745,1739140232058,-158.4593464,9.383e-05,2]
[352503747,1739140232068,-250.0,9.407e-05,2]
[352503749,1739140232078,-300.0,9.606e-05,2]
[352503751,1739140232088,-1348.5406536,9.607e-05,2]
[352503753,1739140232100,-23551.4593464,9.607e-05,2]
[352503755,1739140232109,-246.2998361,9.865e-05,2]
[352503757,1739140232119,-280.62380415,9.949e-05,2]
[352503759,1739140232129,-900.0,0.00010068,2]
[352503761,1739140232138,-420.0,0.00010567,2]
[352503763,1739140232148,-400.0,0.00010685,2]
[352503765,1739140232157,-233.20280137,0.00010858,2]
[352503767,1739140232167,-260.34545958,0.00010858,2]
[352503769,1739140232177,-500.0,0.00010958,2]
[352503771,1739140232187,-500.0,0.00010958,2]
[352503773,1739140232196,-382.68603555,0.00010958,2]
[352503775,1739140232206,-500.0,0.00010958,2]
[352503777,1739140232215,-500.0,0.00010958,2]
[352503779,1739140232225,-500.0,0.00010958,2]
[352503781,1739140232235,-500.0,0.00010958,2]
[352503784,1739140232245,-500.0,0.00010958,2]
[352503787,1739140232254,-500.0,0.00010958,2]
[352503789,1739140232263,-500.0,0.00010958,2]
[352503791,1739140232273,-500.0,0.00010958,2]
[352503793,1739140232282,-500.0,0.00010958,2]
[352503795,1739140232291,-500.0,0.00010958,2]
[352503797,1739140232301,-500.0,0.00010958,2]
[352503799,1739140232310,-500.0,0.00010958,2]
[352503801,1739140232320,-500.0,0.00010958,2]
[352503803,1739140232329,-500.0,0.00010958,2]
[352503805,1739140232339,-466.82312454,0.00010958,2]
[352503814,1739140232412,-33.17687546,0.00010958,2]
[352503816,1739140232422,-500.0,0.00010958,2]
[352503818,1739140232431,-500.0,0.00010958,2]
[352503820,1739140232440,-500.0,0.00010958,2]
[352503822,1739140232451,-500.0,0.00010958,2]
[352503824,1739140232460,-500.0,0.00010958,2]
[352503826,1739140232469,-500.0,0.00010958,2]
[352503828,1739140232479,-500.0,0.00010958,2]
[352503830,1739140232488,-188.53033655,0.00010958,2]
[352503832,1739140232497,-500.0,0.00010958,2]
[352503834,1739140232507,-500.0,0.00010958,2]
[352503836,1739140232516,-500.0,0.00010958,2]
[352503837,1739140232525,-324.07776045,0.00010958,2]
[352503839,1739140232534,-500.0,0.00010958,2]
[352503841,1739140232544,-500.0,0.00010958,2]
[352503843,1739140232553,-500.0,0.00010958,2]
[352503845,1739140232562,-500.0,0.00010958,2]
[352503847,1739140232571,-500.0,0.00010958,2]
[352503849,1739140232580,-500.0,0.00010958,2]
[352503851,1739140232589,-500.0,0.00010958,2]
[352503853,1739140232599,-500.0,0.00010958,2]
[352503855,1739140232608,-500.0,0.00010958,2]
[352503856,1739140232618,-500.0,0.00010958,2]
[352503858,1739140232627,-274.81221361,0.00010958,2]
[352503860,1739140232636,-7.09312188,0.00010958,2]
[352503863,1739140232647,-492.90687812,0.00010958,2]
[352503865,1739140232657,-139.08299717,0.00010958,2]
[352503879,1739140237952,-60.03700283,0.00010958,2]
[352503880,1739140237963,-500.0,0.00010958,2]
[352503881,1739140237972,-489.96299714,0.00010958,2]
[352503882,1739140237984,-10.03700286,0.00010958,2]
[352503883,1739140237994,-500.0,0.00010958,2]
[352503885,1739140238004,-540.1,0.00010958,2]
[352503886,1739140238015,-535.79,0.00010958,2]
[352503888,1739140238025,-500.0,0.00010958,2]
[352503889,1739140238034,-500.0,0.00010958,2]
[352503892,1739140238043,-500.0,0.00010958,2]
[352503894,1739140238053,-500.0,0.00010958,2]
[352503895,1739140238062,-500.0,0.00010958,2]
[352503897,1739140238071,-418.66492704,0.00010958,2]
[352503899,1739140238080,-500.0,0.00010958,2]
[352503901,1739140238090,-500.0,0.00010958,2]
[352503903,1739140238099,-501.84635472,0.00010958,2]
[352503906,1739140238108,-500.0,0.00010958,2]
[352503908,1739140238117,-283.21467601,0.00010958,2]
[352503909,1739140238126,-500.0,0.00010958,2]
[352503910,1739140238136,-500.0,0.00010958,2]
[352503911,1739140238151,-500.0,0.00010958,2]
[352503912,1739140238160,-500.0,0.00010958,2]
[352503913,1739140238170,-259.90191611,0.00010958,2]
[352503914,1739140238183,-240.09808389,0.00010958,2]
[352503915,1739140238193,-500.0,0.00010958,2]
[352503916,1739140238202,-500.0,0.00010958,2]
[352503917,1739140238212,-500.0,0.00010958,2]
[352503918,1739140238222,-500.0,0.00010958,2]
[352503919,1739140238233,-519.95,0.00010958,2]
[352503920,1739140238243,-500.0,0.00010958,2]
[352503921,1739140238253,-500.0,0.00010958,2]
[352503922,1739140238263,-516.72,0.00010958,2]
[352503923,1739140238272,-500.0,0.00010958,2]
[352503924,1739140238283,-500.0,0.00010958,2]
[352503925,1739140238293,-500.0,0.00010958,2]
[352503926,1739140238303,-500.0,0.00010958,2]
[352503927,1739140238312,-500.0,0.00010958,2]
[352503928,1739140238322,-500.0,0.00010958,2]
[352503929,1739140238331,-500.0,0.00010958,2]
[352503930,1739140238340,-500.0,0.00010958,2]
[352503931,1739140238350,-188.974048,0.00010958,2]
[352503932,1739140238359,-500.0,0.00010958,2]
[352503933,1739140238368,-552.85,0.00010958,2]
[352503934,1739140238378,-308.74117842,0.00010958,2]
[352503935,1739140238390,-191.25882158,0.00010958,2]
[352503936,1739140238400,-500.0,0.00010958,2]
[352503937,1739140238410,-567.64,0.00010958,2]
[352503938,1739140238420,-500.0,0.00010958,2]
[352503939,1739140238430,-2838.69,0.00010958,2]
[352503940,1739140238440,-500.0,0.00010958,2]
[352503941,1739140238449,-500.0,0.00010958,2]
[352503942,1739140238460,-500.0,0.00010958,2]
[352503943,1739140238469,-500.0,0.00010958,2]
[352503944,1739140238479,-500.0,0.00010958,2]
[352503945,1739140238488,-500.0,0.00010958,2]
[352503946,1739140238497,-500.0,0.00010958,2]
[352503947,1739140238506,-500.0,0.00010958,2]
[352503948,1739140238517,-534.82,0.00010958,2]
[352503949,1739140238526,-500.0,0.00010958,2]
[352503950,1739140238535,-440.59132994,0.00010958,2]
[352503951,1739140238547,-59.40867006,0.00010958,2]
[352503952,1739140238556,-335.59132994,0.00010958,2]
[352503953,1739140238568,-285.43980486,0.00010958,2]
[352503954,1739140238579,-221.3588652,0.00010958,2]
[352503955,1739140238588,-500.0,0.00010958,2]
[352503956,1739140238598,-500.0,0.00010958,2]
[352503957,1739140238608,-500.0,0.00010958,2]
[352503958,1739140238618,-648.52,0.00010958,2]
[352503959,1739140238627,-500.0,0.00010958,2]
[352503960,1739140238636,-500.0,0.00010958,2]
[352503961,1739140238646,-500.0,0.00010958,2]
[352503962,1739140238655,-500.0,0.00010958,2]
[352503963,1739140238664,-500.0,0.00010958,2]
[352503964,1739140238674,-500.0,0.00010958,2]
[352503965,1739140238683,-500.0,0.00010958,2]
[352503966,1739140238693,-500.0,0.00010958,2]
[352503967,1739140238702,-500.0,0.00010958,2]
[352503968,1739140238860,-500.0,0.00010958,2]
[352503969,1739140238870,-500.0,0.00010958,2]
[352503970,1739140238882,-500.0,0.00010958,2]
[352503971,1739140238891,-500.0,0.00010958,2]
[352503972,1739140238901,-500.0,0.00010958,2]
[352503973,1739140238911,-500.0,0.00010958,2]
[352503974,1739140238922,-500.0,0.00010958,2]
[352503975,1739140238932,-500.0,0.00010958,2]
[352503976,1739140238941,-500.0,0.00010958,2]
[352503977,1739140238950,-500.0,0.00010958,2]
[352503978,1739140238960,-500.0,0.00010958,2]
[352503979,1739140238970,-500.0,0.00010958,2]
[352503980,1739140238979,-500.0,0.00010958,2]
[352503981,1739140238989,-500.0,0.00010958,2]
[352503982,1739140238999,-595.65,0.00010958,2]
[352503983,1739140239009,-500.0,0.00010958,2]
[352503984,1739140239020,-500.0,0.00010958,2]
[352503985,1739140239030,-500.0,0.00010958,2]
[352503986,1739140239039,-500.0,0.00010958,2]
[352503987,1739140239049,-1531.81,0.00010958,2]
[352503988,1739140239059,-500.0,0.00010958,2]
[352503989,1739140239069,-500.0,0.00010958,2]
[352503990,1739140239078,-1821.47,0.00010958,2]
[352503991,1739140239088,-500.0,0.00010958,2]
[352503992,1739140239098,-500.0,0.00010958,2]
[352503993,1739140239107,-511.3,0.00010958,2]
[352503994,1739140239117,-183.73402898,0.00010995,2]
[352503995,1739140239127,-500.0,0.00011095,2]
[352503996,1739140239138,-536.2,0.00011095,2]
[352503997,1739140239148,-500.0,0.00011095,2]
[352503998,1739140239157,-212.01,0.00011095,2]
[352503999,1739140239167,-505.71975041,0.00011095,2]
[352504000,1739140239180,-242.59,0.00011095,2]
[352504001,1739140239190,-500.0,0.00011095,2]
[352504002,1739140239200,-500.0,0.00011095,2]
[352504003,1739140239210,-500.0,0.00011095,2]
[352504004,1739140239219,-500.0,0.00011095,2]
[352504005,1739140239230,-320.07,0.00011095,2]
[352504006,1739140239245,-500.0,0.00011095,2]
[352504007,1739140239254,-500.0,0.00011095,2]
[352504008,1739140239265,-240.86,0.00011095,2]
[352504009,1739140239274,-500.0,0.00011095,2]
[352504010,1739140239284,-500.0,0.00011095,2]
[352504011,1739140239293,-500.0,0.00011095,2]
[352504012,1739140239303,-2838.69,0.00011095,2]
[352504013,1739140239313,-500.0,0.00011095,2]
[352504015,1739140239323,-500.0,0.00011095,2]
[352504017,1739140239333,-500.0,0.00011095,2]
[352504018,1739140239344,-500.0,0.00011095,2]
[352504019,1739140239353,-500.0,0.00011095,2]
[352504020,1739140239363,-500.0,0.00011095,2]
[352504021,1739140239373,-842.39,0.00011095,2]
[352504022,1739140239383,-500.0,0.00011095,2]
[352504023,1739140239394,-500.0,0.00011095,2]
[352504024,1739140239404,-255.41,0.00011095,2]
[352504025,1739140239413,-500.0,0.00011095,2]
[352504026,1739140239423,-154.15,0.00011095,2]
[352504027,1739140239432,-500.0,0.00011095,2]
[352504028,1739140239442,-500.0,0.00011095,2]
[352504029,1739140239452,-500.0,0.00011095,2]
[352504030,1739140239462,-500.0,0.00011095,2]
[352504032,1739140239471,-458.98,0.00011095,2]
[352504033,1739140239481,-500.0,0.00011095,2]
[352504034,1739140239490,-500.0,0.00011095,2]
[352504035,1739140239500,-500.0,0.00011095,2]
[352504036,1739140239509,-500.0,0.00011095,2]
[352504037,1739140239520,-631.4066173,0.00011095,2]
[352504038,1739140239529,-201.75,0.00011095,2]
[352504039,1739140239539,-500.0,0.00011095,2]
[352504040,1739140239549,-500.0,0.00011095,2]